bitfinex/quotes_ETHUSD_20250605
["timestamp","ask_amount","ask_price","bid_price","bid_amount"]
[1749141560662,14.77647108,2559.2,2559.0,207.29044969]
[1749141560909,7.90747108,2559.2,2559.0,207.29044969]
[1749141561678,3.90747108,2559.2,2559.0,207.29044969]
[1749141563268,10.776428,2559.3,2559.0,207.29044969]
[1749141563454,3.90747108,2559.2,2559.0,207.29044969]
[1749141563891,4.45747108,2559.2,2559.0,207.29044969]
[1749141564080,8.45747108,2559.2,2559.0,207.29044969]
[1749141564275,14.77647108,2559.2,2559.0,208.04334969]
[1749141564513,14.77647108,2559.2,2559.0,207.29044969]
[1749141564721,15.32647108,2559.2,2559.0,207.29044969]
[1749141564942,7.90747108,2559.2,2559.0,207.29044969]
[1749141565084,10.77647108,2559.2,2559.0,207.29044969]
[1749141565278,3.90747108,2559.2,2559.0,207.29044969]
[1749141565594,0.36032303,2559.7,2559.2,0.7878]
[1749141565790,4.0,2559.3,2559.2,0.7878]
[1749141566196,4.0,2559.3,2559.0,210.05804969]
[1749141566578,10.77608328,2559.5,2559.0,213.96574311]
[1749141566772,6.869,2559.5,2559.0,210.05804969]
[1749141567312,10.77605062,2559.5,2559.0,210.05804969]
[1749141567518,3.90727596,2559.4,2559.0,210.05804969]
[1749141567723,3.90747108,2559.2,2559.0,210.05804969]
[1749141567922,3.90735838,2559.3,2559.0,210.05804969]
[1749141568284,10.77647108,2559.2,2559.0,207.29044969]
[1749141568482,11.13787189,2559.2,2559.0,207.29044969]
[1749141568679,4.26887189,2559.2,2559.0,207.29044969]
[1749141568901,3.90723928,2559.4,2559.0,207.29044969]
[1749141569101,0.45040379,2559.6,2559.0,207.29044969]
[1749141569102,6.869,2559.5,2559.0,207.29044969]
[1749141569437,7.23043805,2559.4,2559.2,0.7595]
[1749141569608,4.0,2559.3,2559.2,0.7595]
[1749141570188,3.90717083,2559.4,2559.2,0.7595]
[1749141570632,0.36178741,2559.3,2559.2,0.7595]
[1749141570831,0.45040379,2560.0,2559.2,0.7595]
[1749141570987,0.36183718,2559.9,2559.5,0.7644]
[1749141571187,0.36183718,2559.8,2559.5,0.7644]
[1749141571407,3.90633793,2560.0,2559.6,1.949]
[1749141571617,10.77499365,2560.2,2559.6,1.949]
[1749141571618,4.2682734,2559.9,2559.6,1.949]
[1749141571817,3.90647609,2559.9,2559.6,1.949]
[1749141571986,3.90649813,2559.9,2559.6,1.949]
[1749141572324,3.90632323,2560.0,2559.6,1.949]
[1749141572521,0.36205695,2559.9,2559.6,5.85585225]
[1749141572830,4.35639024,2560.2,2559.6,5.85577686]
[1749141572988,3.90618055,2560.1,2559.7,0.8158]
[1749141573324,0.36230613,2560.0,2559.8,3.90653704]
[1749141573619,0.45288266,2560.4,2559.7,0.8158]
[1749141573923,0.36249647,2560.3,2559.9,1.949]
[1749141574124,0.36249647,2560.2,2560.0,0.7548]
[1749141574335,4.35813162,2560.7,2560.0,4.66102438]
[1749141574534,4.26792005,2560.6,2560.3,0.7548]
[1749141574834,0.36255842,2560.5,2560.3,0.7548]
[1749141574997,7.31988266,2560.9,2560.3,0.7548]
[1749141575198,0.81540097,2560.8,2560.3,0.7548]
[1749141575403,4.26776952,2560.7,2560.3,0.7548]
[1749141575629,0.36251831,2560.6,2560.3,0.7548]
[1749141575833,0.36251831,2560.5,2560.3,0.7548]
[1749141575995,3.90540559,2560.6,2560.3,0.7548]
[1749141576392,3.90507523,2560.8,2560.3,0.7548]
[1749141576393,3.90526343,2560.7,2560.3,0.7548]
[1749141576592,0.36240851,2560.6,2560.3,4.66058513]
[1749141576826,0.36229311,2560.7,2560.5,3.90539977]
[1749141577027,0.3625172,2560.9,2560.6,5.85026359]
[1749141577210,0.3625172,2560.8,2560.7,0.8242]
[1749141577535,4.26754687,2560.8,2560.7,0.8242]
[1749141577693,3.90502967,2560.8,2560.7,0.8242]
[1749141577901,0.3624357,2560.8,2560.7,0.8242]
[1749141578100,3.9046359,2561.1,2560.7,0.8242]
[1749141578332,0.36243482,2561.0,2560.7,0.8242]
[1749141578629,0.36232088,2561.2,2560.7,0.8242]
[1749141578830,0.45288266,2561.4,2560.4,0.8321]
[1749141578831,3.9054872,2560.5,2560.4,0.8321]
[1749141579037,3.9053974,2560.6,2560.1,2.7771]
[1749141579193,3.9053974,2560.6,2560.1,6.68312979]
[1749141579393,3.90550801,2560.5,2560.1,2.7771]
[1749141579638,3.9058706,2560.3,2560.1,2.7771]
[1749141579837,3.90594484,2560.2,2560.1,2.7771]
[1749141580127,3.90561528,2560.5,2560.1,18.7771]
[1749141580301,3.90533468,2560.6,2560.1,18.7771]
[1749141580507,0.36230151,2560.7,2560.2,0.7584]
[1749141580705,3.90534728,2560.6,2560.2,4.66427059]
[1749141580923,4.26733118,2560.8,2560.2,0.7584]
[1749141581232,3.90555547,2560.5,2560.3,1.945]
[1749141581532,3.90555547,2560.5,2560.1,16.0]
[1749141581533,3.90594484,2560.2,2560.1,1.945]
[1749141582100,3.90682758,2559.7,2559.5,1.945]
[1749141582295,3.90658137,2559.8,2559.5,1.945]
[1749141582296,3.9066399,2559.8,2559.5,1.945]
[1749141582582,3.90672482,2559.7,2559.5,1.945]
[1749141582777,3.90663903,2559.8,2559.5,1.945]
[1749141582935,3.9068596,2559.7,2559.5,1.945]
[1749141583139,3.90686044,2559.6,2559.5,1.945]
[1749141583434,3.9068596,2559.7,2559.5,1.945]
[1749141583641,3.90674317,2559.7,2559.5,1.945]
[1749141584338,3.90644246,2559.9,2559.5,1.945]
[1749141584538,6.865,2559.9,2559.5,1.945]
[1749141584757,3.90657205,2559.8,2559.5,1.945]
[1749141584975,3.90671725,2559.7,2559.5,1.945]
[1749141585273,3.90660901,2559.8,2559.5,1.945]
[1749141585439,6.865,2560.0,2559.5,1.945]
[1749141585639,3.90679091,2559.7,2559.5,1.945]
[1749141585841,6.865,2560.0,2559.5,1.945]
[1749141586071,3.90659479,2559.8,2559.5,1.945]
[1749141586291,6.865,2560.0,2559.5,1.945]
[1749141586459,10.77125553,2560.0,2559.5,5.85192759]
[1749141586771,3.90611658,2560.1,2559.5,1.945]
[1749141587079,0.82,2560.5,2559.6,4.69465277]
[1749141587235,6.864,2560.4,2559.6,0.7878]
[1749141587570,3.90610947,2560.1,2559.7,3.90664088]
[1749141587778,6.864,2560.4,2559.6,0.7878]
[1749141587974,3.9058769,2560.3,2559.6,0.7878]
[1749141588173,3.90622024,2560.1,2559.6,0.7878]
[1749141588341,6.864,2560.4,2559.6,4.6946395]
[1749141588673,3.9062571,2560.0,2559.6,4.69459332]
[1749141588841,3.90611063,2560.1,2559.6,20.69459332]
[1749141589235,6.864,2560.4,2559.6,16.7878]
[1749141589464,3.90541423,2560.6,2560.1,3.90601571]
[1749141589637,3.9052562,2560.7,2560.3,0.8244]
[1749141589834,3.90506707,2560.8,2560.3,4.73017436]
[1749141589835,3.9051004,2560.8,2560.3,4.73017436]
[1749141590066,4.67726214,2561.4,2560.5,3.90536226]
[1749141590271,4.0,2560.6,2560.5,3.9054872]
[1749141590514,4.0,2560.6,2560.5,20.6755872]
[1749141591007,3.90445149,2561.2,2560.8,16.0]
[1749141591213,3.90434036,2561.3,2560.9,2.7004]
[1749141591393,3.90423339,2561.4,2560.9,6.60518634]
[1749141591707,3.90407712,2561.5,2560.9,6.60516428]
[1749141591904,6.864,2561.7,2560.9,6.60520061]
[1749141592104,3.9042776,2561.3,2560.9,2.7004]
[1749141592312,3.90420169,2561.4,2560.9,6.60519201]
[1749141592482,3.90455271,2561.2,2560.9,2.7004]
[1749141592814,3.90421981,2561.4,2560.9,6.60523906]
[1749141593112,6.862,2561.8,2560.9,2.7004]
[1749141593412,3.92337945,2561.9,2561.0,16.0]
[1749141593599,3.90456392,2561.2,2561.1,1.944]
[1749141593909,3.9044198,2561.2,2561.1,1.944]
[1749141594111,3.90417872,2561.4,2561.1,1.944]
[1749141594290,3.9044198,2561.2,2561.1,1.944]
[1749141594999,3.90487719,2560.9,2560.8,1.944]
[1749141595809,3.90479111,2561.0,2560.8,1.944]
[1749141596178,0.38218159,2561.9,2560.9,0.7657]
[1749141596385,3.90472471,2561.0,2560.9,0.7657]
[1749141596785,3.90429562,2561.3,2560.9,0.7657]
[1749141597099,3.90415716,2561.4,2560.9,4.67053282]
[1749141597299,3.90401974,2561.5,2561.0,3.90469538]
[1749141597476,3.90434076,2561.3,2560.9,16.7657]
[1749141597712,3.90419764,2561.4,2560.9,20.6705733]
[1749141598042,3.90396252,2561.5,2560.9,16.7657]
[1749141598217,3.90451712,2561.2,2560.9,16.7657]
[1749141598423,3.90411639,2561.4,2561.0,1.944]
[1749141598648,3.90353306,2561.8,2561.0,1.944]
[1749141598838,3.90426494,2561.4,2561.0,1.944]
[1749141599225,10.76373218,2561.7,2561.0,1.944]
[1749141599611,3.90387739,2561.6,2561.1,3.90447125]
[1749141599823,3.90350534,2561.8,2561.2,4.72109187]
[1749141600036,3.90366359,2561.7,2561.3,16.0]
[1749141600238,0.02,2561.9,2561.3,0.8168]
[1749141600423,3.9039617,2561.6,2561.3,0.8168]
[1749141601148,3.90411493,2561.4,2561.3,0.8168]
[1749141601404,0.7938,2561.8,2561.3,0.8168]
[1749141601517,3.90407675,2561.5,2561.3,0.8168]
[1749141601708,3.90388849,2561.6,2561.3,0.8168]
[1749141602368,3.90373223,2561.7,2561.3,0.8168]
[1749141602513,3.90411493,2561.4,2561.3,0.8168]
[1749141602713,3.90403619,2561.5,2561.3,2.7608]
[1749141603242,3.90391728,2561.6,2561.3,2.7608]
[1749141603447,3.90411493,2561.4,2561.3,1.944]
[1749141603826,3.90490071,2560.9,2560.8,1.944]
[1749141604066,3.90467387,2561.1,2560.8,1.944]
[1749141604345,3.90481004,2561.0,2560.8,1.944]
[1749141604549,3.90460712,2561.1,2560.8,1.944]
[1749141604747,3.90430761,2561.3,2560.8,1.944]
[1749141604748,3.904506,2561.2,2560.8,1.944]
[1749141604950,3.90457879,2561.1,2560.8,1.944]
[1749141605154,3.90426736,2561.3,2560.8,5.84901935]
[1749141605449,3.90447568,2561.2,2560.8,1.944]
[1749141605638,3.90494103,2560.9,2560.7,0.7788]
[1749141605948,3.90453763,2561.2,2560.8,1.941]
[1749141606151,3.90459434,2561.1,2560.8,1.941]
[1749141606449,6.858,2561.4,2560.8,1.941]
[1749141606630,10.76219811,2561.4,2560.8,1.941]
[1749141606952,3.9046057,2561.1,2560.8,1.941]
[1749141607123,3.90487719,2560.9,2560.7,0.7788]
[1749141607326,3.90487719,2560.9,2560.8,1.941]
[1749141607956,3.90463911,2561.1,2560.8,1.941]
[1749141608157,3.90487719,2560.9,2560.8,1.941]
[1749141609842,3.90487719,2560.9,2560.5,0.7532]
[1749141609843,3.90533468,2560.6,2560.5,0.7532]
[1749141610047,3.90533468,2560.6,2560.5,1.941]
[1749141610222,3.9051403,2560.8,2560.5,1.941]
[1749141610552,3.90533468,2560.6,2560.5,1.941]
[1749141611040,3.90594484,2560.2,2560.1,1.941]
[1749141611442,3.90518813,2560.7,2560.1,1.941]
[1749141611443,0.55,2560.7,2560.1,1.941]
[1749141611649,3.90574191,2560.4,2560.1,1.941]
[1749141611844,6.857,2560.8,2560.1,5.84702429]
[1749141612163,3.90579228,2560.3,2560.2,0.7571]
[1749141612459,3.90594484,2560.2,2560.1,1.941]
[1749141612849,11.12482402,2560.8,2560.1,1.941]
[1749141612850,0.55,2561.0,2560.2,0.7541]
[1749141613050,3.90510525,2560.8,2560.3,3.90577232]
[1749141613250,0.7525,2561.2,2560.4,3.9055542]
[1749141613251,3.90494889,2560.9,2560.4,3.9055542]
[1749141613476,3.90504574,2560.8,2560.3,3.90567382]
[1749141613680,3.90494772,2560.9,2560.4,3.9056251]
[1749141614055,1.10765176,2561.2,2560.6,0.7997]
[1749141614377,3.90457225,2561.1,2560.7,1.941]
[1749141614577,3.90460275,2561.1,2560.7,1.941]
[1749141614887,3.90479972,2561.0,2560.7,1.941]
[1749141615068,3.90467895,2561.1,2560.7,1.941]
[1749141615273,0.71035512,2561.4,2560.8,0.8291]
[1749141615447,3.90367438,2561.7,2560.9,6.857]
[1749141615645,3.90433037,2561.3,2560.9,6.857]
[1749141616567,3.90420256,2561.4,2560.9,10.76187264]
[1749141616951,3.90502967,2560.8,2560.7,1.941]
[1749141617169,3.90579228,2560.3,2560.2,1.941]
[1749141617382,3.90598723,2560.2,2560.0,1.941]
[1749141617589,3.90603308,2560.2,2560.0,1.941]
[1749141617748,0.36327655,2560.6,2560.0,2.7184]
[1749141617948,3.90549695,2560.5,2560.2,0.7774]
[1749141618154,3.9054872,2560.5,2560.2,0.7774]
[1749141618375,3.90579228,2560.3,2560.2,0.7774]
[1749141618576,3.90579228,2560.3,2560.2,2.7184]
[1749141618974,4.09961925,2560.3,2560.2,2.7184]
[1749141620049,3.9059783,2560.2,2560.1,1.941]
[1749141620723,0.19382697,2560.3,2560.1,1.941]
[1749141620909,3.9052539,2560.7,2560.2,0.7855]
[1749141621226,0.45408263,2561.0,2560.2,16.7855]
[1749141621227,3.90533477,2560.6,2560.2,16.7855]
[1749141621387,3.90557908,2560.5,2560.2,16.7855]
[1749141621587,3.90579228,2560.3,2560.2,0.7855]
[1749141622187,3.90579228,2560.3,2560.1,1.941]
[1749141622188,3.90594484,2560.2,2560.1,1.941]
[1749141623406,3.90640259,2559.9,2559.8,1.941]
[1749141623609,3.90632762,2560.0,2559.8,1.941]
[1749141623924,3.90575993,2560.4,2559.9,4.71262669]
[1749141624334,3.90583411,2560.3,2559.9,0.8063]
[1749141624702,4.68154935,2560.3,2559.6,8.432]
[1749141625019,4.68154935,2560.3,2559.7,1.941]
[1749141625020,3.90655519,2559.8,2559.7,1.941]
[1749141625222,3.90701308,2559.5,2559.4,0.8063]
[1749141625612,3.90716574,2559.4,2559.3,1.941]
[1749141626033,3.90710685,2559.5,2559.2,0.8063]
[1749141626452,6.855,2559.8,2559.1,0.02]
[1749141626607,3.90747108,2559.2,2559.1,0.02]
[1749141627541,5.25517108,2559.2,2559.1,0.02]
[1749141628252,51.25517108,2559.2,2559.1,0.02]
[1749141628542,51.22612377,2559.1,2559.0,207.2338755]
[1749141628719,52.60639496,2559.1,2559.0,207.2338755]
[1749141628915,52.60640825,2559.1,2559.0,207.2338755]
[1749141629103,52.39410335,2559.1,2559.0,207.2338755]
[1749141629310,51.58825367,2559.1,2559.0,207.2338755]
[1749141629616,59.01043736,2559.1,2559.0,207.13360174]
[1749141629942,58.44425367,2559.1,2559.0,207.13360174]
[1749141630148,51.58825367,2559.1,2559.0,207.13360174]
[1749141630458,58.65674451,2559.1,2559.0,207.13360174]
[1749141630744,58.65674289,2559.1,2559.0,207.13360174]
[1749141630941,59.00202083,2559.1,2559.0,207.13360174]
[1749141631150,67.69387732,2559.1,2559.0,207.13360174]
[1749141631329,50.47337168,2559.1,2559.0,207.13360174]
[1749141631539,56.96724178,2559.1,2559.0,207.13360174]
[1749141631915,27.51724178,2559.1,2559.0,207.13360174]
[1749141632253,26.76462377,2559.1,2559.0,207.13360174]
[1749141632764,3.90762377,2559.1,2559.0,207.13360174]
[1749141632955,10.76462377,2559.1,2559.0,207.13360174]
[1749141633158,0.35421945,2559.3,2559.1,0.7642]
[1749141633358,3.9073184,2559.3,2559.2,1.942]
[1749141633722,3.90747108,2559.2,2559.1,0.7642]
[1749141633948,3.90742114,2559.3,2559.0,207.13360174]
[1749141634151,3.90756241,2559.2,2559.0,207.13360174]
[1749141634333,3.90757137,2559.2,2559.0,207.13360174]
[1749141634735,10.76417221,2559.4,2559.0,207.13360174]
[1749141634937,6.857,2559.4,2559.0,207.13360174]
[1749141635138,3.90762377,2559.1,2559.0,207.13360174]
[1749141635529,3.9074943,2559.2,2559.0,207.13360174]
[1749141635767,3.90734865,2559.3,2559.1,0.7658]
[1749141635973,3.90734865,2559.3,2559.2,1.939]
[1749141636134,3.90747108,2559.2,2559.1,0.7658]
[1749141636530,3.90747108,2559.2,2559.0,207.13360174]
[1749141636531,3.90762377,2559.1,2559.0,207.13360174]
[1749141636725,4.45762377,2559.1,2559.0,207.13360174]
[1749141636940,20.45762377,2559.1,2559.0,207.13360174]
[1749141637577,50.45762377,2559.1,2559.0,207.13360174]
[1749141637989,51.6238375,2559.1,2559.0,207.13360174]
[1749141638443,52.53310745,2559.1,2559.0,207.13360174]
[1749141638626,52.53311198,2559.1,2559.0,207.13360174]
[1749141638984,59.39011198,2559.1,2559.0,207.13360174]
[1749141639165,59.18657588,2559.1,2559.0,207.13360174]
[1749141639494,58.4808375,2559.1,2559.0,207.13360174]
[1749141639639,58.9328177,2559.1,2559.0,207.13360174]
[1749141639842,58.83373793,2559.1,2559.0,207.13360174]
[1749141640197,51.83466532,2559.1,2559.0,188.58830522]
[1749141640331,66.71979183,2559.1,2559.0,188.58830522]
[1749141640538,67.13248707,2559.1,2559.0,188.58830522]
[1749141641782,67.13248707,2559.1,2559.0,187.81568022]
[1749141641987,66.36788707,2559.1,2559.0,187.81568022]
[1749141643082,59.50988707,2559.1,2559.0,187.81568022]
[1749141643493,58.95988707,2559.1,2559.0,187.81568022]
[1749141643786,66.36688707,2559.1,2559.0,187.81568022]
[1749141644358,68.30688707,2559.1,2559.0,187.81568022]
[1749141644891,4.2680375,2559.1,2559.0,187.81568022]
[1749141645111,10.76562377,2559.1,2559.0,187.81568022]
[1749141645272,3.90762377,2559.1,2559.0,187.81568022]
[1749141645590,10.76562377,2559.1,2559.0,187.81568022]
[1749141645791,19.45747334,2559.1,2559.0,187.81568022]
[1749141645981,20.00747334,2559.1,2559.0,187.81568022]
[1749141646306,3.90762377,2559.1,2559.0,188.60108022]
[1749141646960,10.76462377,2559.1,2559.0,188.60108022]
[1749141647404,3.90762377,2559.1,2559.0,187.81568022]
[1749141647703,10.76462377,2559.1,2559.0,187.81568022]
[1749141648002,11.12566706,2559.1,2559.0,187.81568022]
[1749141648168,10.76462377,2559.1,2559.0,188.58148022]
[1749141649790,3.90762377,2559.1,2559.0,188.58148022]
[1749141649991,10.76462377,2559.1,2559.0,188.58148022]
[1749141650571,10.76462377,2559.1,2559.0,187.81568022]
[1749141650769,11.12578685,2559.1,2559.0,187.81568022]
[1749141650991,11.67578685,2559.1,2559.0,187.81568022]
[1749141651403,28.12708301,2559.1,2559.0,187.81568022]
[1749141651616,58.89948301,2559.1,2559.0,187.81568022]
[1749141651820,58.80171953,2559.1,2559.0,187.81568022]
[1749141652000,28.02932971,2559.1,2559.0,187.81568022]
[1749141652172,11.67578685,2559.1,2559.0,187.81568022]
[1749141652377,4.26878685,2559.1,2559.0,187.81568022]
[1749141652804,11.12478685,2559.1,2559.0,187.81568022]
[1749141653115,12.96063642,2559.1,2559.0,187.81568022]
[1749141653287,11.12578685,2559.1,2559.0,187.81568022]
[1749141654213,19.81763642,2559.1,2559.0,187.81568022]
[1749141654414,20.72186748,2559.1,2559.0,187.81568022]
[1749141654612,24.72186497,2559.1,2559.0,187.81568022]
[1749141654775,9.07661614,2559.1,2559.0,187.81568022]
[1749141655119,15.57841324,2559.1,2559.0,187.81568022]
[1749141655675,62.49358685,2559.1,2559.0,187.81568022]
[1749141655929,8.6235856,2559.1,2559.0,188.63458022]
[1749141656079,15.57871092,2559.1,2559.0,188.63458022]
[1749141656280,15.93357008,2559.1,2559.0,188.63458022]
[1749141656519,8.72271092,2559.1,2559.0,188.63458022]
[1749141656695,15.57871092,2559.1,2559.0,188.63458022]
[1749141657011,4.26878685,2559.1,2559.0,188.63458022]
[1749141657183,4.27096509,2559.1,2559.0,188.63458022]
[1749141657384,0.36334132,2559.1,2559.0,188.63458022]
[1749141658339,3.90724934,2559.4,2559.0,188.63458022]
[1749141658503,3.90762377,2559.1,2559.0,188.63458022]
[1749141658710,3.90701339,2559.5,2559.1,0.831]
[1749141658904,0.45417665,2559.8,2559.1,0.831]
[1749141659111,0.36333297,2559.7,2559.1,6.855]
[1749141659312,0.36333297,2559.6,2559.2,0.831]
[1749141659513,3.9069191,2559.6,2559.2,0.831]
[1749141659721,3.9073184,2559.3,2559.2,0.831]
[1749141659943,11.12551974,2559.3,2559.2,0.831]
[1749141661445,4.27051974,2559.3,2559.2,0.831]
[1749141661661,0.36320134,2559.5,2559.2,8.794]
[1749141661848,0.36320134,2559.8,2559.3,0.7504]
[1749141662057,0.36320134,2559.7,2559.4,0.7504]
[1749141662351,3.90641487,2559.9,2559.4,11.51249902]
[1749141662656,3.90640738,2559.9,2559.5,0.7669]
[1749141662823,3.90632813,2560.0,2559.6,0.7669]
[1749141663228,3.90670781,2559.7,2559.6,0.7669]
[1749141663460,10.76170781,2559.7,2559.6,0.7669]
[1749141663615,3.90762377,2559.1,2558.8,1.939]
[1749141664244,3.90753075,2559.2,2559.0,188.64678022]
[1749141664421,6.855,2559.2,2559.0,188.64678022]
[1749141664627,10.7621131,2559.5,2559.0,188.64678022]
[1749141664956,3.9072423,2559.4,2559.0,188.64678022]
[1749141665129,3.90732077,2559.3,2559.0,188.64678022]
[1749141665563,0.36306915,2559.8,2559.1,16.0]
[1749141665762,10.7607526,2559.7,2559.0,188.64678022]
[1749141665951,3.90762377,2559.1,2559.0,188.64678022]
[1749141666149,3.90739248,2559.3,2559.0,188.64678022]
[1749141666354,6.854,2559.6,2559.0,192.55447249]
[1749141666605,3.90762377,2559.1,2559.0,188.64678022]
[1749141666902,10.76162377,2559.1,2559.0,187.81568022]
[1749141667044,26.76162377,2559.1,2559.0,187.81568022]
[1749141667243,27.12469292,2559.1,2559.0,187.81568022]
[1749141667451,66.36654249,2559.1,2559.0,187.81568022]
[1749141667651,65.27493149,2559.1,2559.0,187.81568022]
[1749141667875,65.62877263,2559.1,2559.0,187.81568022]
[1749141668061,71.41190544,2559.1,2559.0,187.81568022]
[1749141668266,71.52295505,2559.1,2559.0,187.81568022]
[1749141668469,71.73531827,2559.1,2559.0,187.81568022]
[1749141668649,56.43014314,2559.1,2559.0,187.81568022]
[1749141668855,15.47794545,2559.1,2559.0,187.81568022]
[1749141669055,14.76162377,2559.1,2559.0,187.81568022]
[1749141669472,4.0,2559.1,2559.0,187.81568022]
[1749141669695,3.90739925,2559.3,2559.1,0.7881]
[1749141669896,3.90747108,2559.2,2559.1,0.7881]
[1749141670310,3.90762377,2559.1,2559.0,187.81568022]
[1749141670813,3.90743595,2559.3,2559.1,0.7881]
[1749141671116,3.90697341,2559.6,2559.1,0.7881]
[1749141671269,0.45347774,2560.1,2559.1,0.7881]
[1749141671270,3.90740523,2559.3,2559.1,0.7881]
[1749141671473,6.854,2559.6,2559.1,0.7881]
[1749141671675,6.854,2559.6,2559.0,189.75268022]
[1749141671676,3.90747108,2559.2,2559.0,187.81568022]
[1749141671886,4.65831308,2559.5,2559.1,0.7692]
[1749141671887,0.36278219,2559.5,2559.1,0.7692]
[1749141672114,0.36278219,2559.8,2559.1,0.7692]
[1749141672299,6.868,2559.7,2559.1,0.7692]
[1749141672498,3.90730166,2559.4,2559.1,0.7692]
[1749141672701,3.90709014,2559.5,2559.1,0.7692]
[1749141672936,0.36278219,2559.9,2559.1,6.865]
[1749141673090,3.9069464,2559.6,2559.3,0.8137]
[1749141673409,6.865,2560.0,2559.3,0.8137]
[1749141673627,3.90716574,2559.4,2559.3,0.8137]
[1749141673804,3.90709988,2559.5,2559.3,0.8137]
[1749141673979,0.36278219,2560.1,2559.4,0.825]
[1749141674179,3.90689246,2559.6,2559.4,0.825]
[1749141674412,0.45347774,2560.5,2559.5,0.825]
[1749141674413,3.90639916,2560.0,2559.5,0.825]
[1749141674714,3.90648979,2559.9,2559.5,0.825]
[1749141675081,6.872,2560.0,2559.5,0.825]
[1749141675297,3.90674328,2559.7,2559.5,0.825]
[1749141675590,10.77547987,2559.9,2559.5,0.825]
[1749141675793,6.869,2559.9,2559.5,0.825]
[1749141675993,3.90640259,2559.9,2559.5,0.825]
[1749141676387,3.90648651,2559.9,2559.5,0.825]
[1749141676586,0.36286522,2560.2,2559.5,0.825]
[1749141676791,3.90656479,2559.8,2559.5,0.825]
[1749141676990,3.9064456,2559.9,2559.5,0.825]
[1749141677208,3.90629045,2560.0,2559.5,0.825]
[1749141677529,0.36286522,2560.4,2559.6,0.795]
[1749141677732,0.20351702,2560.8,2560.0,3.90614924]
[1749141678035,0.02,2560.9,2560.4,4.70053156]
[1749141678191,0.02,2560.9,2560.4,0.795]
[1749141678611,0.02,2560.9,2560.5,4.72867122]
[1749141678895,0.02,2560.9,2560.8,20.72822967]
[1749141679092,0.02,2560.9,2560.8,29.61622967]
[1749141679533,3.92346784,2561.9,2561.3,3.90412181]
[1749141679702,3.92346784,2561.9,2561.4,4.67293801]
[1749141679903,0.02,2561.9,2561.5,3.90384799]
[1749141680227,3.90223747,2562.7,2562.2,0.7689]
[1749141680401,3.90274362,2562.3,2562.2,0.7689]
[1749141681014,10.87974362,2562.3,2562.2,0.7689]
[1749141681214,3.9039343,2561.6,2561.5,0.8196]
[1749141682011,6.974,2561.9,2560.8,1.936]
[1749141682214,3.90466438,2561.1,2560.8,1.936]
[1749141682414,3.90481744,2561.0,2560.9,0.7797]
[1749141682797,3.90472471,2561.0,2560.9,0.7797]
[1749141683232,3.90472471,2561.0,2560.1,3.92609014]
[1749141683233,3.9054872,2560.5,2560.4,0.7617]
[1749141683420,3.90540205,2560.6,2560.4,0.7617]
[1749141683600,3.90540222,2560.6,2560.4,0.7617]
[1749141683928,3.9054872,2560.5,2560.4,0.7617]
[1749141685535,3.90594484,2560.2,2560.1,0.8337]
[1749141687227,3.90594484,2560.2,2560.1,0.02]
[1749141687950,10.84994484,2560.2,2560.1,0.02]
[1749141689553,3.90594484,2560.2,2560.1,0.02]
[1749141689760,10.84194484,2560.2,2560.1,0.02]
[1749141690105,35.53379441,2560.2,2560.1,0.02]
[1749141690334,36.28909441,2560.2,2560.1,0.02]
[1749141690603,67.19971945,2560.2,2560.1,0.02]
[1749141691216,67.19371945,2560.2,2560.1,0.02]
[1749141691436,59.90309441,2560.2,2560.1,0.02]
[1749141691637,67.1907767,2560.2,2560.1,0.02]
[1749141692243,25.02192713,2560.2,2560.1,0.02]
[1749141692441,3.90594484,2560.2,2560.1,0.02]
[1749141692746,0.8195,2560.8,2560.1,0.02]
[1749141692946,3.90594484,2560.2,2560.1,0.02]
[1749141693603,10.82794484,2560.2,2560.1,0.02]
[1749141694328,10.82394484,2560.2,2560.1,0.02]
[1749141695507,3.90594484,2560.2,2560.1,0.02]
[1749141696542,10.81194484,2560.2,2560.1,0.02]
[1749141696713,3.90594484,2560.2,2560.1,0.02]
[1749141696914,10.80994484,2560.2,2560.1,0.02]
[1749141697243,3.90594484,2560.2,2560.1,0.02]
[1749141697449,10.80794484,2560.2,2560.1,0.02]
[1749141697910,3.90594484,2560.2,2560.1,0.02]
[1749141698110,3.90579704,2560.3,2560.1,0.02]
[1749141698111,3.90586082,2560.3,2560.1,0.02]
[1749141698366,3.90567572,2560.4,2560.1,0.02]
[1749141698521,10.8057314,2560.4,2560.2,0.8105]
[1749141698704,3.9057314,2560.4,2560.2,0.8105]
[1749141698906,0.45098316,2562.0,2560.6,0.8105]
[1749141699106,0.7902,2562.4,2560.9,0.8105]
[1749141699315,3.90277284,2562.3,2561.3,3.90417646]
[1749141699550,3.90347112,2561.9,2561.3,19.90419063]
[1749141699734,3.90346336,2561.9,2561.3,19.90419063]
[1749141699929,3.90346336,2561.9,2561.4,3.90408031]
[1749141700168,3.90337167,2561.9,2561.3,16.0]
[1749141700369,3.90303532,2562.2,2561.6,3.90381011]
[1749141700657,3.90290329,2562.2,2561.7,0.8017]
[1749141700856,3.90290329,2562.2,2561.7,4.70534262]
[1749141700857,3.90297545,2562.2,2561.7,4.70534262]
[1749141701019,3.90316343,2562.1,2561.7,0.8017]
[1749141701220,3.90300069,2562.2,2561.7,4.70533665]
[1749141701418,6.922,2562.3,2561.7,0.8017]
[1749141701616,3.90289504,2562.3,2561.7,4.7052589]
[1749141701843,3.90245247,2562.5,2561.9,16.0]
[1749141702043,0.38136866,2562.9,2561.7,0.8017]
[1749141702044,3.90229451,2562.6,2561.7,0.8017]
[1749141702262,3.90229451,2562.6,2562.1,0.7635]
[1749141702662,0.02,2562.9,2562.1,0.7635]
[1749141702663,3.92187611,2562.9,2562.1,20.66652028]
[1749141702862,6.915,2562.8,2562.1,0.7635]
[1749141703160,3.90289594,2562.2,2562.1,0.7635]
[1749141703372,7.674,2562.3,2561.7,0.7635]
[1749141703717,0.36088845,2562.8,2561.7,0.7635]
[1749141703925,3.90274362,2562.3,2562.2,0.7961]
[1749141704147,0.02,2562.9,2562.4,0.7961]
[1749141704529,0.02,2562.9,2562.6,19.90219697]
[1749141704733,0.02,2562.9,2562.8,19.9019822]
[1749141704960,0.02,2562.9,2562.8,22.6966822]